bitfinex/quotes_ETHUSD_20241116
["timestamp","ask_amount","ask_price","bid_price","bid_amount"]
[1731733539120,3.19663,3128.3,3127.3,3.96274]
[1731733539121,3.19695,3128.0,3127.3,3.96267]
[1731733539596,3.19695,3128.0,3127.4,3.19751]
[1731733540279,3.11248001,3128.6,3127.1,3.0]
[1731733540280,0.8122,3127.9,3127.1,3.0]
[1731733540480,0.8122,3127.9,3127.2,3.0]
[1731733541110,0.07919327,3127.8,3127.2,6.19767]
[1731733541319,0.07919327,3127.8,3127.3,3.19757]
[1731733541501,0.07919327,3127.8,3127.4,3.1975]
[1731733541699,4.00908,3128.1,3127.5,0.7651]
[1731733541899,0.07923696,3127.7,3127.2,6.96284]
[1731733542220,3.1972,3127.8,3127.2,6.96276]
[1731733542604,0.07923696,3127.7,3127.2,6.96276]
[1731733542988,0.07923696,3127.7,3127.2,0.7651]
[1731733543438,3.19762,3127.4,3126.7,3.19817]
[1731733543930,3.27676214,3127.3,3126.7,3.19817]
[1731733544337,3.27676214,3127.3,3126.6,0.7651]
[1731733544507,0.07910214,3127.3,3126.7,3.19823]
[1731733544897,0.07910214,3127.3,3126.8,0.06395353]
[1731733545123,0.07910214,3127.3,3126.7,3.19823]
[1731733545124,3.19765,3127.3,3126.7,3.19823]
[1731733545296,0.07904559,3127.2,3126.6,3.96344]
[1731733545496,0.07904559,3127.2,3126.7,3.0]
[1731733546000,0.07904559,3127.2,3126.7,6.19823]
[1731733546208,0.07904559,3127.2,3126.7,3.19823]
[1731733546810,3.27682559,3127.2,3126.6,0.7651]
[1731733547402,3.19794,3127.1,3126.6,0.7651]
[1731733547830,3.27693816,3127.0,3126.6,0.7651]
[1731733548934,3.27693816,3127.0,3126.4,3.19853]
[1731733549257,3.27693816,3127.0,3126.5,0.33376672]
[1731733550031,3.19807,3126.9,3126.5,0.33376672]
[1731733550236,0.07891072,3126.8,3126.5,0.33376672]
[1731733550556,3.19796,3127.0,3126.5,0.33376672]
[1731733550762,0.078877,3126.7,3126.5,0.33376672]
[1731733550967,3.19796,3127.0,3126.5,0.33376672]
[1731733551165,0.07884328,3126.6,3126.5,0.33376672]
[1731733551371,3.19796,3127.0,3126.5,0.33376672]
[1731733551570,0.07884328,3126.6,3126.5,0.33376672]
[1731733551725,3.19806,3126.9,3126.5,0.33376672]
[1731733552043,3.19816,3126.8,3126.5,0.33376672]
[1731733552244,0.078877,3126.7,3126.3,0.7651]
[1731733552477,3.19816,3126.8,3126.5,0.33379]
[1731733552634,0.07884328,3126.6,3126.5,0.33379]
[1731733552974,3.19814,3126.9,3126.5,0.33379]
[1731733553179,0.07884328,3126.6,3126.5,0.33379]
[1731733553331,3.19795,3127.0,3126.5,0.33379]
[1731733553532,0.07884328,3126.6,3126.5,0.33379]
[1731733553834,3.19805,3126.9,3126.5,0.33379]
[1731733554058,0.07891072,3126.8,3126.5,0.33379]
[1731733556037,3.19816,3126.8,3126.5,0.33379]
[1731733556259,0.07879636,3126.7,3126.5,0.33379]
[1731733556600,3.19816,3126.8,3126.5,0.33379]
[1731733556760,0.07876263,3126.6,3126.5,0.33379]
[1731733556958,3.19816,3126.8,3126.5,0.33379]
[1731733557158,0.07876263,3126.6,3126.5,0.33379]
[1731733557378,3.19806,3126.9,3126.5,0.33379]
[1731733557578,0.07876263,3126.6,3126.5,0.33379]
[1731733557894,0.0787667,3126.6,3126.5,0.33379]
[1731733558108,3.19806,3126.9,3126.5,0.33379]
[1731733558273,0.0787667,3126.6,3126.5,0.33379]
[1731733558453,3.19806,3126.9,3126.5,0.33379]
[1731733558661,0.07883415,3126.8,3126.5,0.33379]
[1731733560257,3.19788,3127.1,3126.5,0.33379]
[1731733560258,3.19795,3127.0,3126.5,0.33379]
[1731733560457,0.07885484,3126.9,3126.5,0.33379]
[1731733560716,3.27693484,3126.9,3126.5,0.33379]
[1731733561193,3.19836,3126.6,3126.5,0.33379]
[1731733561580,3.27711122,3126.6,3126.0,0.7693]
[1731733561790,3.27711122,3126.6,3126.4,0.333787]
[1731733562607,0.07875122,3126.6,3126.4,0.333787]
[1731733562962,3.19844,3126.6,3126.4,0.333787]
[1731733563304,0.0787175,3126.5,3126.4,0.333787]
[1731733564596,3.98446,3126.8,3126.4,0.333787]
[1731733565074,0.07878495,3126.7,3126.4,0.333787]
[1731733565273,0.07878495,3126.7,3126.6,3.19836]
[1731733565595,3.19746,3127.5,3126.9,3.19799]
[1731733565914,3.2766171,3127.4,3126.7,3.19822]
[1731733566111,3.19764,3127.3,3126.7,3.19822]
[1731733566319,3.27661339,3127.3,3126.7,3.19822]
[1731733566702,0.07897339,3127.3,3126.8,3.19814]
[1731733566906,0.7863,3127.7,3126.9,0.06395377]
[1731733567109,0.07893967,3127.2,3126.7,6.19819]
[1731733567278,3.19754,3127.4,3126.7,6.19819]
[1731733567489,0.07891981,3127.1,3126.7,6.19819]
[1731733567694,3.19754,3127.4,3126.7,6.19819]
[1731733567919,0.0788861,3127.0,3126.7,6.19819]
[1731733568111,3.19754,3127.4,3126.7,6.19819]
[1731733568307,0.07887682,3126.9,3126.7,3.0]
[1731733568529,3.19754,3127.4,3126.8,3.19815]
[1731733569713,3.19754,3127.4,3126.7,3.0]
[1731733569714,3.19766,3127.3,3126.7,3.0]
[1731733569902,3.19736,3127.6,3126.7,6.19824]
[1731733570232,3.19757,3127.4,3126.8,3.19815]
[1731733570843,3.19757,3127.4,3126.7,3.0]
[1731733570844,3.19757,3127.4,3126.7,6.19824]
[1731733571310,3.19824,3126.8,3126.4,0.333787]
[1731733571512,0.319824,3126.7,3126.4,0.333787]
[1731733571716,0.8026,3126.9,3126.4,0.333787]
[1731733572343,4.00072,3126.9,3126.4,0.333787]
[1731733572826,0.8026,3127.5,3126.6,3.0]
[1731733573026,3.19761,3127.4,3126.9,0.8004]
[1731733573200,3.27667659,3127.4,3126.9,0.8004]
[1731733574300,0.07906659,3127.4,3126.9,0.8004]
[1731733575108,3.95862,3127.8,3127.1,3.19777]
[1731733575337,0.07905407,3127.3,3127.1,3.19777]
[1731733575536,3.19724,3127.7,3127.1,3.19777]
[1731733575738,0.07902198,3127.2,3127.1,3.19777]
[1731733576047,3.95854,3127.8,3127.1,3.19777]
[1731733576409,0.07919052,3127.7,3127.2,3.19773]
[1731733577942,0.07919052,3127.7,3126.9,3.99842]
[1731733578257,3.19741,3127.6,3127.0,3.19793]
[1731733578415,3.95854,3127.8,3127.1,3.19784]
[1731733578615,0.07912311,3127.5,3127.1,3.19784]
[1731733578819,3.19724,3127.7,3127.1,3.19784]
[1731733579138,0.07915682,3127.6,3127.1,3.19784]
[1731733579527,0.07915682,3127.6,3127.0,3.19794]
[1731733580655,0.07915682,3127.6,3127.1,3.0]
[1731733582014,0.07915682,3127.6,3126.9,0.8004]
[1731733582015,3.27656682,3127.6,3126.9,0.8004]
[1731733582324,3.19766,3127.3,3126.7,3.333706]
[1731733582760,0.07908389,3127.2,3126.7,6.531946]
[1731733583880,0.07908389,3127.2,3126.8,3.19812]
[1731733584083,3.19754,3127.4,3126.8,3.19812]
[1731733584285,0.0791176,3127.3,3126.8,3.19812]
[1731733584486,0.0791176,3127.3,3127.0,3.19786]
[1731733584691,3.19713,3127.9,3127.0,3.19786]
[1731733584692,0.7614,3127.7,3127.0,3.19786]
[1731733584855,0.7614,3127.7,3127.4,3.19753]
[1731733585061,0.7614,3127.9,3127.4,3.19753]
[1731733585759,3.95844,3127.9,3127.2,3.98334]
[1731733586570,0.7614,3127.9,3127.4,3.19752]
[1731733588184,0.07926576,3127.8,3127.2,3.98334]
[1731733588389,3.27642576,3127.8,3127.2,3.19774]
[1731733588542,3.1973,3127.7,3127.1,3.0]
[1731733588882,3.27653206,3127.7,3127.1,6.19784]
[1731733589088,0.07923206,3127.7,3127.2,3.19774]
[1731733589239,3.9585,3127.9,3127.2,3.19774]
[1731733589444,0.07926576,3127.8,3127.2,3.19774]
[1731733589684,0.07926576,3127.8,3127.1,3.0]
[1731733589868,0.07926576,3127.8,3127.4,3.19749]
[1731733590085,3.19694,3128.0,3127.4,3.19749]
[1731733590476,0.07929946,3127.9,3127.4,3.19749]
[1731733590798,0.07929946,3127.9,3127.5,0.319]
[1731733590941,0.07929946,3127.9,3127.4,3.19749]
[1731733591341,0.07929946,3127.9,3127.6,3.19731]
[1731733591596,0.795,3128.2,3127.7,3.19722]
[1731733592085,0.07942795,3128.1,3127.7,3.19722]
[1731733593068,3.27625795,3128.1,3127.5,3.0]
[1731733594294,0.07942795,3128.1,3127.5,3.0]
[1731733594589,3.19694,3128.0,3127.5,3.0]
[1731733594779,3.27635544,3128.0,3127.5,3.0]
[1731733596274,3.27635544,3128.0,3127.5,6.19742]
[1731733596275,0.07941544,3128.0,3127.5,6.19742]
[1731733596486,3.99182,3128.2,3127.5,6.19742]
[1731733596681,3.27634914,3128.1,3127.5,3.0]
[1731733597125,3.27634914,3128.1,3127.5,6.19741]
[1731733597345,3.27634914,3128.1,3127.6,3.19733]
[1731733597536,3.27634914,3128.1,3127.5,6.19741]
[1731733598336,0.07944914,3128.1,3127.6,3.19732]
[1731733598544,0.07944914,3128.1,3127.6,3.19726]
[1731733598735,0.07944914,3128.1,3127.5,6.19741]
[1731733600491,0.07944914,3128.1,3127.8,3.19706]
[1731733600696,0.795,3128.2,3127.9,3.19703]
[1731733601003,3.19648,3128.5,3127.9,3.19703]
[1731733601004,0.07676622,3128.0,3127.9,3.19703]
[1731733601203,3.19622,3128.7,3127.9,3.94993]
[1731733601204,3.9997,3128.6,3127.9,3.94993]
[1731733601484,3.19642,3128.5,3127.9,3.94993]
[1731733601860,3.19642,3128.5,3127.7,3.19714]
[1731733601861,3.19662,3128.3,3127.7,3.19714]
[1731733602105,0.07683442,3128.2,3127.7,3.19714]
[1731733603861,0.8033,3128.1,3127.7,3.19714]
[1731733604063,0.07677925,3128.0,3127.6,0.7529]
[1731733604699,0.07677925,3128.0,3127.6,3.95023]
[1731733606175,0.07677925,3128.0,3127.5,3.0]
[1731733606900,3.27372925,3128.0,3127.5,3.0]
[1731733607098,3.27375925,3128.0,3127.5,3.0]
[1731733607397,3.19705,3127.9,3127.3,3.0]
[1731733607612,3.27377502,3127.9,3127.3,6.19757]
[1731733607763,0.07672502,3127.9,3127.4,3.19747]
[1731733607961,3.19695,3128.0,3127.5,3.0]
[1731733608164,0.0766848,3127.8,3127.5,3.0]
[1731733608360,3.19695,3128.0,3127.5,3.0]
[1731733608563,0.0766511,3127.7,3127.5,2.99]
[1731733608761,3.19704,3127.9,3127.5,2.99]
[1731733608962,0.0766174,3127.6,3127.2,3.19767]
[1731733609190,3.19704,3127.9,3127.2,3.19767]
[1731733609460,0.8274,3127.9,3127.0,3.95083]
[1731733609786,0.53240233,3128.1,3126.8,3.53179014]
[1731733609787,1.32382334,3127.6,3126.8,3.53179014]
[1731733609965,0.8274,3127.3,3126.8,3.53179014]
[1731733610308,0.07647686,3127.2,3126.8,0.33365014]
[1731733610462,4.02505,3127.3,3126.8,0.33365014]
[1731733610799,0.07647686,3127.2,3126.8,0.33365014]
[1731733611159,0.8274,3127.3,3126.8,0.33365014]
[1731733611388,0.07644315,3127.1,3126.8,3.33365014]
[1731733611561,3.19775,3127.2,3126.8,0.33365014]
[1731733611757,0.07640943,3127.0,3126.8,0.33365014]
[1731733612091,1.229904,3127.3,3126.8,0.33365014]
[1731733612414,0.8274,3127.3,3126.8,0.33365014]
[1731733612571,0.07644347,3127.2,3126.8,0.33365014]
[1731733612773,4.02513,3127.3,3126.8,0.33365014]
[1731733613017,0.07640975,3127.1,3126.8,0.33365014]
[1731733613311,0.07637604,3127.0,3126.8,0.33365014]
[1731733613607,3.19778,3127.2,3126.8,0.33365014]
[1731733614091,0.07636579,3127.1,3126.8,0.33365014]
[1731733614455,4.02505,3127.3,3126.8,0.33365014]
[1731733614655,0.07639053,3127.2,3126.8,0.33365014]
[1731733614860,3.19776,3127.2,3126.8,0.33365014]
[1731733615112,3.27422682,3127.1,3126.8,0.33365014]
[1731733615304,0.8274,3127.0,3126.8,0.33365014]
[1731733615464,3.19805,3126.9,3126.8,0.33365014]
[1731733615666,3.27433285,3126.9,3126.8,0.33365014]
[1731733617120,2.70243285,3126.9,3126.8,0.33365014]
[1731733618337,0.07628285,3126.9,3126.8,0.33365014]
[1731733619388,3.27433285,3126.9,3126.8,0.33365014]
[1731733619633,4.55430114,3126.9,3126.8,0.33365014]
[1731733619788,5.38170114,3126.9,3126.8,0.33365014]
[1731733622022,4.65173285,3126.9,3126.8,0.33365014]
[1731733622221,4.65173285,3126.9,3125.9,0.06397138]
[1731733622222,3.27433285,3126.9,3126.4,0.771]
[1731733622427,0.07628285,3126.9,3126.4,0.771]
[1731733623397,0.07628285,3126.9,3126.4,3.96956]
[1731733623904,0.07628285,3126.9,3126.2,3.0]
[1731733623905,3.19827,3126.7,3126.2,3.0]
[1731733624115,0.07608472,3126.6,3126.1,6.19886]
[1731733624322,3.74823,3126.8,3126.1,6.19886]
[1731733624522,0.07605833,3126.5,3126.1,6.19886]
[1731733624690,3.19827,3126.7,3126.1,6.19886]
[1731733624902,0.07609205,3126.6,3126.1,6.19886]
[1731733625317,0.07609205,3126.6,3126.5,0.0024385]
[1731733625694,3.27445205,3126.6,3126.5,0.0024385]
[1731733626216,4.10185205,3126.6,3126.5,0.0024385]
[1731733628195,0.90349205,3126.6,3126.5,0.0024385]
[1731733628403,0.07609205,3126.6,3126.5,0.0024385]
[1731733628647,3.19797,3127.0,3126.5,0.0024385]
[1731733628844,0.07608472,3126.6,3126.5,0.0024385]
[1731733629138,0.07607005,3126.6,3126.5,0.0024385]
[1731733629338,3.19807,3126.9,3126.5,0.8127385]
[1731733629497,0.07607005,3126.6,3126.5,0.0024385]
[1731733629698,3.19818,3126.8,3126.5,0.0024385]
[1731733630026,0.07610378,3126.7,3126.5,0.0024385]
[1731733630542,0.07607005,3126.6,3126.5,0.0024385]
[1731733630703,3.19818,3126.8,3126.5,0.0024385]
[1731733630905,0.07610378,3126.7,3126.5,0.0024385]
[1731733631245,3.19818,3126.8,3126.5,0.0024385]
[1731733631450,0.86617658,3126.6,3126.5,0.0024385]
[1731733631602,0.7901,3126.6,3126.5,0.0024385]
[1731733631924,0.07607658,3126.6,3126.5,0.0024385]
[1731733632245,3.27443658,3126.6,3126.5,0.0024385]
[1731733632626,0.07607658,3126.6,3126.5,0.0024385]
[1731733633003,0.7901,3127.2,3126.5,0.8127385]
[1731733633202,3.10947417,3127.7,3126.5,4.0111985]
[1731733633203,0.07607495,3126.6,3126.5,4.0111985]
[1731733633518,3.98752,3127.6,3126.9,3.19801]
[1731733633699,0.7901,3127.6,3126.9,3.19801]
[1731733633903,3.19748,3127.5,3126.9,3.19801]
[1731733634096,3.98746,3127.6,3126.9,3.198]
[1731733634530,3.98746,3127.6,3126.7,3.19823]
[1731733634531,3.19682,3128.1,3127.3,3.19764]
[1731733634733,3.19703,3128.0,3127.3,3.19764]
[1731733635144,3.19703,3127.9,3127.3,3.19764]
[1731733635642,3.98253,3128.1,3127.4,3.19747]
[1731733635847,0.7857,3128.1,3127.4,3.19747]
[1731733636145,3.19693,3128.0,3127.4,3.19747]
[1731733638019,3.1971,3127.9,3127.2,4.00867]
[1731733638222,3.19693,3128.0,3127.2,4.00867]
[1731733638534,3.19693,3128.0,3127.4,3.19745]
[1731733638730,3.19711,3127.9,3127.2,4.00867]
[1731733638931,3.19693,3128.0,3127.3,3.19756]
[1731733639337,0.7857,3128.1,3127.3,3.19756]
[1731733639646,3.19703,3127.9,3127.2,0.811]
[1731733640006,3.19703,3127.9,3127.2,4.00872]
[1731733640751,7.17944,3128.1,3127.3,3.19755]
[1731733640917,3.98254,3128.1,3127.3,3.19755]
[1731733641126,3.19693,3128.0,3127.3,3.19755]
[1731733641836,3.98254,3128.1,3127.3,3.19755]
[1731733642039,3.98254,3128.1,3127.5,3.19739]
[1731733642460,0.55,3128.2,3127.6,4.00832]
[1731733642750,3.19662,3128.4,3127.7,3.19717]
[1731733642971,3.19631,3128.6,3127.6,0.06393861]
[1731733643173,3.19614,3128.8,3128.2,0.811]
[1731733643389,0.7857,3129.0,3128.2,0.811]
[1731733643545,3.19569,3129.3,3127.6,3.10947417]
[1731733643546,0.7857,3129.3,3128.6,3.19621]
[1731733643867,0.7857,3129.3,3128.7,0.811]
[1731733643868,0.63051642,3129.2,3128.7,0.811]
[1731733644039,3.98138,3129.3,3128.7,0.811]
[1731733644372,0.07206043,3129.2,3128.7,4.00716]
[1731733644542,0.07206043,3129.2,3128.7,4.0072]
[1731733644742,0.07206043,3129.2,3129.0,3.19587]
[1731733644947,3.19521,3129.7,3128.9,3.19593]
[1731733645152,0.07228546,3129.6,3129.0,0.06391147]
[1731733645354,3.19508,3129.9,3129.2,3.19562]
[1731733645669,0.07235278,3129.8,3129.2,0.06390617]
[1731733645872,0.07235278,3129.8,3129.6,3.19522]
[1731733646074,0.07235278,3129.8,3129.7,0.811]
[1731733646431,3.19455,3130.4,3129.7,4.00619]
[1731733646634,3.19455,3130.4,3129.1,3.10947417]
[1731733646635,3.19528,3129.7,3129.1,3.0]
[1731733646937,0.07244747,3129.6,3129.2,0.01]
[1731733647166,3.19475,3130.2,3129.4,3.19547]
[1731733647371,0.0724138,3129.5,3129.4,3.19547]
[1731733647548,0.0724138,3129.5,3129.2,3.20561]
[1731733647733,3.19482,3130.1,3129.3,3.19558]
[1731733647930,0.0723956,3129.4,3129.2,0.01]
[1731733648131,3.19511,3129.8,3129.2,0.01]
[1731733648437,0.07236193,3129.3,3129.2,0.01]
[1731733648765,3.1954,3129.5,3129.2,0.01]
[1731733648766,3.19545,3129.5,3129.2,0.01]
[1731733648960,0.07238062,3129.3,3129.2,0.01]
[1731733649138,3.19522,3129.7,3129.2,0.01]
[1731733649335,0.07237005,3129.3,3129.2,0.01]
[1731733649560,3.19531,3129.6,3129.2,0.01]
[1731733649849,0.07237005,3129.3,3129.0,4.00688]
[1731733650044,3.19532,3129.6,3129.0,0.811]
[1731733650246,0.07233638,3129.2,3129.0,0.811]
[1731733650431,0.07233638,3129.2,3129.0,3.811]
[1731733650635,3.195,3129.9,3129.1,3.19577]
[1731733650862,3.195,3129.9,3129.1,3.25967739]
[1731733651034,0.07253836,3129.8,3129.1,3.25967739]
[1731733651242,3.26764836,3129.8,3129.1,3.25967739]
[1731733651443,0.07253836,3129.8,3129.2,3.19568]
[1731733651647,0.07253836,3129.8,3129.3,3.19551]
[1731733652073,3.19489,3130.0,3129.3,3.19551]
[1731733652278,0.07250471,3129.7,3129.3,3.19551]
[1731733652590,0.07246372,3129.6,3129.3,3.19551]
[1731733652750,3.19488,3130.1,3129.3,0.01]
[1731733652952,0.07243006,3129.5,3129.3,0.01]
[1731733653172,3.19547,3129.5,3129.3,0.01]
[1731733653381,3.26790779,3129.4,3129.3,0.01]
[1731733655080,0.07240779,3129.4,3129.3,0.01]
[1731733655283,3.26790779,3129.4,3128.8,0.7847385]
[1731733655436,3.1955,3129.4,3128.8,3.7847385]
[1731733655753,0.07237412,3129.3,3128.8,3.7847385]
[1731733656344,0.07237412,3129.3,3128.8,0.7847385]
[1731733656564,0.07237412,3129.3,3129.1,3.19579]
[1731733656762,3.19526,3129.7,3128.9,6.25982229]
[1731733656968,0.07234289,3129.2,3129.0,3.19584]
[1731733657139,3.19512,3129.8,3129.1,6.1958]
[1731733657546,3.19512,3129.8,3129.1,3.0]
[1731733658447,3.19502,3129.9,3129.2,3.19563]
[1731733658651,3.19511,3129.8,3129.3,0.7823]
[1731733658961,3.19503,3129.9,3129.3,0.7823]
[1731733659560,0.01,3130.8,3128.8,0.0024385]
[1731733659561,3.19443,3130.5,3129.6,3.19527]
[1731733659751,3.19458,3130.3,3129.7,0.84619734]
[1731733659948,0.8144,3130.7,3129.7,0.84619734]
[1731733660147,3.19488,3130.0,3129.3,0.7823]
[1731733660345,3.1955,3129.4,3129.0,0.7823]
[1731733660596,3.1953,3129.6,3129.0,0.7823]
[1731733660886,3.19491,3130.0,3129.3,3.19559]
[1731733661202,3.19499,3129.9,3129.3,3.19559]
[1731733661361,3.19522,3129.7,3129.0,3.7823]
[1731733661747,3.19541,3129.5,3129.0,3.7823]
[1731733661901,3.19522,3129.7,3129.1,3.19579]
[1731733662193,3.19454,3130.4,3129.2,3.97358397]
[1731733662408,3.19454,3130.4,3129.8,0.7823]
[1731733662559,3.19487,3130.1,3129.8,0.7823]
[1731733662755,3.19487,3130.1,3129.3,3.19554]
[1731733662756,3.19499,3129.9,3129.4,0.7823]
[1731733663186,0.07017977,3129.8,3129.4,0.7823]
[1731733663753,3.26527977,3129.8,3129.4,0.7823]
[1731733664153,0.07017977,3129.8,3129.4,0.7823]
[1731733665159,3.26526977,3129.8,3129.4,0.7823]
[1731733665705,0.07017977,3129.8,3129.4,0.7823]
[1731733666016,3.26529977,3129.8,3129.4,0.7823]
[1731733666316,0.07014612,3129.7,3129.4,0.7823]
[1731733666618,3.19512,3129.8,3129.4,0.7823]
[1731733666788,0.07014612,3129.7,3129.4,0.7823]
[1731733666991,3.19512,3129.8,3129.4,0.7823]
[1731733667324,0.07014612,3129.7,3129.4,0.7823]
[1731733667681,3.19512,3129.8,3129.4,0.7823]
[1731733667876,0.07011246,3129.6,3129.4,0.7823]
[1731733668100,3.19512,3129.8,3129.4,0.7823]
[1731733668313,0.07007879,3129.5,3129.4,0.7823]
[1731733668505,2.99512,3129.8,3129.4,0.7823]
[1731733668707,0.07007879,3129.5,3129.4,0.7823]
[1731733668910,2.99512,3129.8,3129.4,0.7823]
[1731733669105,0.07007879,3129.5,3129.4,0.7823]
[1731733669309,2.99512,3129.8,3129.4,0.7823]
[1731733669794,0.07014612,3129.7,3129.4,0.7823]
[1731733669983,2.99512,3129.8,3129.4,0.7823]
[1731733670184,0.07014612,3129.7,3129.4,0.7823]
[1731733670384,3.19522,3129.7,3129.4,0.7823]
[1731733670610,0.07011246,3129.6,3129.1,3.7991]
[1731733671196,0.07011246,3129.6,3129.2,0.06390584]
[1731733671396,3.26544246,3129.6,3129.2,0.06390584]
[1731733672728,0.07011246,3129.6,3129.2,0.06390584]
[1731733673229,0.07007879,3129.5,3129.3,3.0]
[1731733673525,2.99512,3129.8,3129.3,3.0]
[1731733673730,0.07004513,3129.4,3129.3,3.0]
[1731733673880,2.99512,3129.8,3129.3,3.0]
[1731733674083,0.07004513,3129.4,3129.3,3.0]
[1731733674316,3.19521,3129.7,3129.1,3.7991]
[1731733674628,3.1955,3129.4,3128.9,3.0]
[1731733674828,3.19532,3129.6,3129.0,3.19586]
[1731733675032,3.19532,3129.6,3129.1,3.0]
[1731733675333,0.07009343,3129.5,3129.1,3.0]
[1731733675526,3.26551343,3129.5,3128.9,3.0]
[1731733675735,0.07009343,3129.5,3128.8,0.7837385]
[1731733675937,3.19578,3129.2,3128.8,0.7837385]
[1731733676526,0.06995715,3129.1,3128.8,0.7837385]
[1731733676795,3.196,3129.0,3128.8,0.0024385]
[1731733676958,3.19601,3128.9,3128.8,0.0024385]
[1731733677246,3.26589981,3128.9,3128.8,0.0024385]
[1731733678105,0.06988981,3128.9,3128.8,0.0024385]
[1731733678501,3.19592,3129.0,3128.8,0.0024385]
[1731733678821,0.06988981,3128.9,3128.8,0.0024385]
[1731733679022,3.26589981,3128.9,3128.8,0.0024385]
[1731733680574,0.06988981,3128.9,3128.8,0.0024385]
[1731733681114,3.95748,3129.1,3128.8,0.0024385]
[1731733681351,0.06982877,3128.9,3128.8,0.0024385]
[1731733681526,3.19588,3129.1,3128.8,0.0024385]
[1731733682065,0.06985188,3129.0,3128.9,0.7813]
[1731733682417,3.1954,3129.5,3128.9,0.7813]
[1731733682617,0.06998656,3129.4,3128.9,0.7813]
[1731733682842,3.19561,3129.3,3128.9,0.7813]
[1731733683155,0.0698696,3129.2,3128.9,0.7813]
[1731733683511,3.1954,3129.5,3128.9,0.7813]
[1731733683814,3.1954,3129.5,3128.9,3.97723]
[1731733684157,0.06993693,3129.4,3128.9,0.7813]
[1731733684307,0.06993693,3129.4,3129.0,3.19589]
[1731733684511,3.19533,3129.6,3129.0,3.19589]
[1731733684751,0.06990326,3129.3,3129.0,3.19589]
[1731733684953,3.19533,3129.6,3129.0,3.19589]
[1731733685138,0.7616,3130.0,3129.2,3.19568]
[1731733685323,0.0699706,3129.5,3129.3,3.19557]
[1731733685664,0.07002399,3129.4,3129.3,3.19557]
[1731733685843,0.07002399,3129.4,3129.3,6.97687]
[1731733686026,3.9565,3130.0,3129.3,6.97687]
[1731733686240,0.07019229,3129.9,3129.6,3.19522]
[1731733686422,0.7616,3130.4,3129.6,3.19523]
[1731733686423,3.19468,3130.2,3129.6,3.19523]
[1731733686938,3.19468,3130.2,3129.4,3.1955]
[1731733686939,0.07027586,3130.1,3129.5,3.0]
[1731733687124,3.26505586,3130.1,3129.5,6.19531]
[1731733687325,3.19464,3130.3,3129.5,3.0]
[1731733687542,0.07025848,3130.0,3129.6,3.19528]
[1731733687743,3.19468,3130.2,3129.6,3.19528]
[1731733687939,0.07024434,3129.9,3129.6,3.19528]
[1731733688142,3.19468,3130.2,3129.6,3.19528]
[1731733688322,0.07021069,3129.8,3129.6,3.19528]
[1731733688523,3.19468,3130.2,3129.5,3.0]
[1731733688524,3.19489,3130.0,3129.5,3.0]
[1731733688760,3.19489,3130.0,3128.8,0.0024385]
[1731733688761,3.26538703,3129.7,3129.0,3.97712]
[1731733688911,3.19521,3129.7,3129.1,3.0]
[1731733689111,0.07014337,3129.6,3129.1,6.19577]
[1731733689417,3.95677,3129.8,3129.1,6.19577]
[1731733689761,0.07017052,3129.7,3129.1,3.1958]
[1731733690453,0.07017052,3129.7,3129.1,3.19572]
[1731733690968,0.07017052,3129.7,3129.2,3.19562]
[1731733691812,3.26539052,3129.7,3129.0,3.97716]
[1731733691936,3.26539052,3129.7,3129.1,3.0]
[1731733692331,3.26539052,3129.7,3129.1,3.19579]
[1731733692663,0.07017052,3129.7,3129.1,3.19579]
[1731733692867,3.26544052,3129.7,3129.1,3.19579]
[1731733693174,0.07017052,3129.7,3129.1,3.19579]
[1731733693473,3.26538052,3129.7,3129.1,3.19579]
[1731733693625,0.07017052,3129.7,3129.1,3.19579]
[1731733693827,0.07017052,3129.7,3129.0,3.7813]
[1731733693828,3.19529,3129.6,3129.0,3.7813]
[1731733694052,0.07008775,3129.5,3129.1,3.19579]
[1731733694235,3.19521,3129.7,3129.1,3.19579]
[1731733694438,6.30410417,3130.3,3129.2,0.8331]
[1731733694439,0.07012141,3129.6,3129.2,0.8331]
[1731733694676,3.19517,3129.8,3129.2,4.09262643]
[1731733694976,0.07015507,3129.7,3129.3,3.19558]
[1731733695346,3.74511,3129.8,3129.2,0.89700644]
[1731733695581,0.07010594,3129.6,3129.2,0.89700644]
[1731733695895,0.07007228,3129.5,3129.2,0.89700644]
[1731733696100,3.74511,3129.8,3129.2,0.89700644]
[1731733696309,0.07003861,3129.4,3129.2,0.89700644]
[1731733696446,3.74511,3129.8,3129.2,0.8331]
[1731733696798,0.0701396,3129.7,3129.2,0.8331]
[1731733697305,3.2653696,3129.7,3129.2,0.8331]
[1731733697589,3.19531,3129.6,3129.1,3.0]
[1731733697894,0.07007228,3129.5,3129.1,3.0]
[1731733698679,0.07007228,3129.5,3129.2,3.25960656]
[1731733699003,0.7763,3129.7,3129.2,3.1957]
[1731733699204,0.07003861,3129.4,3129.1,3.0]
[1731733699357,0.7763,3129.7,3129.1,3.0]
[1731733699550,0.07000495,3129.3,3129.1,3.0]
[1731733699755,3.19533,3129.6,3129.1,3.0]
[1731733699992,0.06997128,3129.2,3129.1,3.0]
[1731733700293,3.26577128,3129.2,3128.8,0.0024385]
[1731733700450,3.9721,3129.2,3128.8,0.0024385]
[1731733700651,3.26575706,3129.1,3128.8,0.0024385]
[1731733700851,3.19592,3129.0,3128.8,0.0024385]
[1731733701092,0.06985971,3128.9,3128.8,0.0024385]
[1731733704206,3.19579,3129.2,3128.8,0.0024385]
[1731733704426,0.06982554,3128.9,3128.8,0.0024385]
[1731733704706,0.0697832,3128.9,3128.8,0.0024385]
[1731733705206,3.19583,3129.1,3128.8,0.0024385]
[1731733705512,3.19579,3129.2,3128.8,0.0024385]
[1731733705693,0.06981771,3129.0,3128.8,0.06635775]
[1731733705904,4.01836,3129.5,3128.9,3.196]
[1731733706570,3.19521,3129.7,3129.1,3.19578]
[1731733706773,3.19492,3130.0,3129.4,3.0]